bitfinex-derivatives/quotes_BTCF0:USTF0_20251109
["timestamp","ask_amount","ask_price","bid_price","bid_amount"]
[1762722027123,0.06463149,104750.0,104740.0,0.36998277]
[1762722028116,0.06463149,104750.0,104740.0,0.34823075]
[1762722028317,0.06463149,104750.0,104740.0,0.33904798]
[1762722029326,0.14068863,104750.0,104740.0,0.33904798]
[1762722029526,0.05805,104740.0,104730.0,0.36094346]
[1762722029723,0.06024803,104740.0,104730.0,0.37012623]
[1762722031331,0.06124803,104740.0,104730.0,0.37012623]
[1762722031827,0.28461909,104740.0,104730.0,0.37012623]
[1762722032233,0.28561909,104740.0,104730.0,0.37012623]
[1762722033030,0.26307909,104740.0,104730.0,0.46563183]
[1762722033225,0.24078909,104740.0,104730.0,0.54168897]
[1762722033832,0.22756909,104740.0,104730.0,0.54168897]
[1762722034324,0.00419803,104740.0,104730.0,0.52615215]
[1762722034828,0.00419803,104740.0,104730.0,0.45009501]
[1762722035033,0.00319803,104740.0,104730.0,0.45109501]
[1762722035728,0.00219803,104740.0,104730.0,0.45109501]
[1762722035935,0.01541803,104740.0,104730.0,0.45109501]
[1762722036232,0.01541803,104740.0,104730.0,0.42934373]
[1762722037633,0.06024803,104740.0,104730.0,0.42934373]
[1762722038530,0.06024803,104740.0,104730.0,0.33383813]
[1762722038828,0.06024803,104740.0,104730.0,0.32465536]
[1762722039223,0.28361909,104740.0,104730.0,0.32465536]
[1762722040025,0.28461909,104740.0,104730.0,0.32465536]
[1762722040331,0.28561909,104740.0,104730.0,0.32365536]
[1762722040532,0.06224803,104740.0,104730.0,0.32365536]
[1762722044236,0.06224803,104740.0,104730.0,0.30190149]
[1762722044434,0.06224803,104740.0,104730.0,0.28636301]
[1762722045134,0.06224803,104740.0,104730.0,0.29554578]
[1762722046834,0.06224803,104740.0,104730.0,0.39105138]
[1762722048839,0.06224803,104740.0,104730.0,0.29554578]
[1762722049141,0.01741803,104740.0,104730.0,0.39105148]
[1762722049330,0.03978803,104740.0,104730.0,0.29554578]
[1762722049532,0.06259803,104740.0,104730.0,0.29554578]
[1762722049734,0.06259803,104740.0,104730.0,0.39105138]
[1762722052443,0.06259803,104740.0,104730.0,0.36929758]
[1762722052640,0.28596909,104740.0,104730.0,0.36929758]
[1762722054450,0.28596909,104740.0,104730.0,0.35375916]
[1762722054835,0.28596909,104740.0,104730.0,0.43934029]
[1762722056233,0.28596909,104740.0,104730.0,0.34383469]
[1762722057842,0.28596909,104740.0,104730.0,0.25825356]
[1762722058045,0.28596909,104740.0,104730.0,0.43934039]
[1762722058743,0.06259803,104740.0,104730.0,0.43934039]
[1762722059444,0.06259803,104740.0,104730.0,0.09490736]
[1762722059638,0.50897916,104740.0,104730.0,0.00014346]
[1762722059840,0.14817916,104740.0,104730.0,0.00014346]
[1762722060249,0.06259803,104740.0,104730.0,0.55121296]
[1762722060547,0.06179803,104740.0,104730.0,0.45570736]
[1762722060737,0.06179803,104740.0,104730.0,0.55121296]
[1762722061848,0.06179803,104740.0,104730.0,0.37012623]
[1762722062138,0.06179803,104740.0,104730.0,0.45570736]
[1762722064440,0.06179803,104740.0,104730.0,0.44016902]
[1762722065344,0.06179803,104740.0,104730.0,0.41841534]
[1762722065643,0.06179803,104740.0,104730.0,0.51392094]
[1762722066236,0.28516909,104740.0,104730.0,0.51392094]
[1762722066643,0.28516909,104740.0,104730.0,0.41841534]
[1762722067338,0.28516909,104740.0,104730.0,0.33283421]
[1762722067545,0.05741,104730.0,104720.0,0.3608]
[1762722067743,0.05960803,104730.0,104720.0,0.3608]
[1762722068739,0.05960803,104730.0,104720.0,0.44738113]
[1762722075755,0.05960803,104730.0,104720.0,0.08658113]
[1762722075951,0.05960803,104730.0,104720.0,0.44738113]
[1762722076261,0.05960803,104730.0,104720.0,0.08658113]
[1762722077042,0.05960803,104730.0,104720.0,0.44738113]
[1762722077747,0.05960803,104730.0,104720.0,0.08658113]
[1762722079048,0.05960803,104730.0,104720.0,0.54289593]
[1762722081451,0.05960803,104730.0,104720.0,0.08658113]
[1762722081649,0.05960803,104730.0,104720.0,0.44738113]
[1762722081854,0.05960803,104730.0,104720.0,0.08658113]
[1762722082053,0.05960803,104730.0,104720.0,0.44738113]
[1762722082356,0.05960803,104730.0,104720.0,0.08658113]
[1762722083256,0.05960803,104730.0,104720.0,0.44738113]
[1762722083442,0.05960803,104730.0,104720.0,0.3618]
[1762722083650,0.05960803,104730.0,104720.0,0.44738113]
[1762722083863,0.05960803,104730.0,104720.0,0.08558113]
[1762722084151,0.05741,104720.0,104710.0,0.44638113]
[1762722084356,0.05960803,104720.0,104710.0,0.3608]
[1762722084952,0.14518916,104720.0,104710.0,0.3608]
[1762722085257,0.05741,104710.0,104700.0,0.44638113]
[1762722085458,0.05960803,104710.0,104700.0,0.44638113]
[1762722085757,0.05960803,104710.0,104700.0,0.43084]
[1762722085963,0.05960803,104710.0,104700.0,0.08558113]
[1762722086449,0.05960803,104710.0,104700.0,0.09058113]
[1762722086952,0.05960803,104710.0,104700.0,0.18911413]
[1762722087356,0.01524803,104710.0,104700.0,0.63549526]
[1762722087546,0.01524803,104710.0,104700.0,0.54991413]
[1762722087751,0.05825803,104710.0,104700.0,0.54991413]
[1762722087950,0.05825803,104710.0,104700.0,0.63549526]
[1762722089663,0.05825803,104710.0,104700.0,0.45438113]
[1762722091858,0.05825803,104710.0,104700.0,0.43262347]
[1762722092364,0.05825803,104710.0,104700.0,0.52815647]
[1762722092662,0.00219803,104710.0,104700.0,0.6137376]
[1762722094166,0.01534803,104710.0,104700.0,0.6137376]
[1762722095766,0.01534803,104710.0,104700.0,0.59819762]
[1762722096668,0.00219803,104710.0,104700.0,0.59819762]
[1762722098569,0.01305,104720.0,104710.0,0.0955239]
[1762722098769,0.01524803,104720.0,104710.0,0.54190503]
[1762722099865,0.00014346,104730.0,104710.0,0.54190503]
[1762722100067,0.01315,104750.0,104740.0,0.0954965]
[1762722100371,0.01388267,104750.0,104740.0,0.54407566]
[1762722100870,0.01388267,104750.0,104740.0,0.52232451]
[1762722101070,0.03503267,104750.0,104740.0,0.52232451]
[1762722101270,0.01388267,104750.0,104740.0,0.52232451]
[1762722102874,0.01388267,104750.0,104740.0,0.51277716]
[1762722104274,0.01488267,104750.0,104740.0,0.51277716]
[1762722105770,0.00173267,104750.0,104740.0,0.51277716]
[1762722105976,0.001,104750.0,104740.0,0.87357716]
[1762722107577,0.00014346,104760.0,104750.0,0.0954874]
[1762722107875,0.00014346,104760.0,104750.0,0.53451921]
[1762722108767,0.00087613,104760.0,104750.0,0.51277072]
[1762722109079,0.00087613,104760.0,104750.0,0.75141072]
[1762722109368,0.00287613,104760.0,104750.0,0.75141072]
[1762722109574,0.00587613,104760.0,104750.0,0.51277072]
[1762722109876,0.00587613,104760.0,104750.0,0.75141072]
[1762722110078,0.00587613,104760.0,104750.0,0.51277072]
[1762722110475,0.00587613,104760.0,104750.0,0.75141072]
[1762722111171,0.06391613,104760.0,104750.0,0.43673694]
[1762722111381,0.06391613,104760.0,104750.0,0.36299803]
[1762722112980,0.06391613,104760.0,104750.0,0.45848543]
[1762722114778,0.06391613,104760.0,104750.0,0.53451921]
[1762722115173,0.01928613,104760.0,104750.0,0.53451921]
[1762722117482,0.04257613,104760.0,104750.0,0.51898552]
[1762722119278,0.06573613,104760.0,104750.0,0.51898552]
[1762722120588,0.02075149,104760.0,104750.0,0.51898552]
[1762722121390,0.02075149,104760.0,104750.0,0.75762552]
[1762722121687,0.02075149,104760.0,104750.0,0.51898552]
[1762722122482,0.00514346,104760.0,104750.0,0.75762552]
[1762722123588,0.01804346,104760.0,104750.0,0.75762552]
[1762722123788,0.02024149,104760.0,104750.0,0.51898552]
[1762722123976,0.02024149,104760.0,104750.0,0.75762552]
[1762722124181,0.02024149,104760.0,104750.0,0.51898552]
[1762722124382,0.02024149,104760.0,104750.0,0.75762552]
[1762722124584,0.04223149,104760.0,104750.0,0.75762552]
[1762722124782,0.04223149,104760.0,104750.0,0.51898552]
[1762722124991,0.04223149,104760.0,104750.0,1.14752552]
[1762722125292,0.02024149,104760.0,104750.0,1.14752552]
[1762722125677,0.02024149,104760.0,104750.0,0.90888552]
[1762722125883,0.04223149,104760.0,104750.0,1.14752552]
[1762722126184,0.06539149,104760.0,104750.0,0.90888552]
[1762722126588,0.06539149,104760.0,104750.0,0.88713832]
[1762722126891,0.06539149,104760.0,104750.0,0.81110454]
[1762722127092,0.06539149,104760.0,104750.0,0.71561714]
[1762722127489,0.06539149,104760.0,104750.0,0.70008232]
[1762722128489,0.06539149,104760.0,104750.0,0.79556972]
[1762722129196,0.06539149,104760.0,104750.0,0.70008232]
[1762722129890,0.05805,104740.0,104730.0,0.50834346]
[1762722130091,0.06024803,104740.0,104730.0,0.50834346]
[1762722130294,0.06024803,104740.0,104730.0,0.58437724]
[1762722130595,0.06024803,104740.0,104730.0,0.67988284]
[1762722131094,0.06024803,104740.0,104730.0,0.68188284]
[1762722131790,0.06024803,104740.0,104730.0,0.68288284]
[1762722132090,0.15574453,104740.0,104730.0,0.68288284]
[1762722132694,0.15574453,104740.0,104730.0,0.68188284]
[1762722132895,0.15674453,104740.0,104730.0,0.68188284]
[1762722133596,0.15674453,104740.0,104730.0,0.67988284]
[1762722133789,0.15674453,104740.0,104730.0,0.53248284]
[1762722134296,0.15674453,104740.0,104730.0,0.43697724]
[1762722134794,0.15674453,104740.0,104730.0,0.36094346]
[1762722137497,0.15674453,104740.0,104730.0,0.34540661]
[1762722138696,0.01609803,104740.0,104730.0,0.51694599]
[1762722138902,0.00319803,104740.0,104730.0,0.51694599]
[1762722139303,0.01609803,104740.0,104730.0,0.51694599]
[1762722139602,0.01609803,104740.0,104730.0,0.66434599]
[1762722139796,0.03808803,104740.0,104730.0,0.66434599]
[1762722140100,0.06124803,104740.0,104730.0,0.66634599]
[1762722140801,0.06024803,104740.0,104730.0,0.66634599]
[1762722140990,0.06024803,104740.0,104730.0,0.66734599]
[1762722141600,0.00219803,104740.0,104730.0,0.66734599]
[1762722141995,0.01509803,104740.0,104730.0,0.66734599]
[1762722142407,0.01509803,104740.0,104730.0,0.66634599]
[1762722142606,0.01609803,104740.0,104730.0,0.66634599]
[1762722142811,0.01609803,104740.0,104730.0,0.66434599]
[1762722143604,0.01609803,104740.0,104730.0,0.66634599]
[1762722144005,0.01609803,104740.0,104730.0,0.66734599]
[1762722144006,0.01509803,104740.0,104730.0,0.66734599]
[1762722144208,0.03708803,104740.0,104730.0,0.66734599]
[1762722144407,0.06024803,104740.0,104730.0,0.66734599]
[1762722145509,0.06024803,104740.0,104730.0,0.57184039]
[1762722146007,0.06024803,104740.0,104730.0,0.56984039]
[1762722146807,0.06224803,104740.0,104730.0,0.56984039]
[1762722147010,0.06224803,104740.0,104730.0,0.56884039]
[1762722147212,0.15874453,104740.0,104730.0,0.56884039]
[1762722147506,0.15874453,104740.0,104730.0,0.55330351]
[1762722147810,0.15974453,104740.0,104730.0,0.55330351]
[1762722148120,0.15974453,104740.0,104730.0,0.47726973]
[1762722148407,0.15774453,104740.0,104730.0,0.47726973]
[1762722148607,0.15974453,104740.0,104730.0,0.47726973]
[1762722148794,0.15974453,104740.0,104730.0,0.55330351]
[1762722149212,0.15774453,104740.0,104730.0,0.55330351]
[1762722149509,0.15774453,104740.0,104730.0,0.47726973]
[1762722149907,0.15574453,104740.0,104730.0,0.47726973]
[1762722150111,0.15874453,104740.0,104730.0,0.47726973]
[1762722150512,0.15774453,104740.0,104730.0,0.47726973]
[1762722150703,0.15974453,104740.0,104730.0,0.47726973]
[1762722153712,0.15874453,104740.0,104730.0,0.55330351]
[1762722154012,0.15874453,104740.0,104730.0,0.64880911]
[1762722154311,0.15974453,104740.0,104730.0,0.64880911]
[1762722154611,0.15774453,104740.0,104730.0,0.64880911]
[1762722154814,0.15574453,104740.0,104730.0,0.64880911]
[1762722155002,0.15574453,104740.0,104730.0,0.55330351]
[1762722155003,0.15674453,104740.0,104730.0,0.55330351]
[1762722155504,0.51754453,104740.0,104730.0,0.22343378]
[1762722156115,0.51754453,104740.0,104730.0,0.1474]
[1762722156321,0.05746,104730.0,104720.0,0.58423378]
[1762722156518,0.05965803,104730.0,104720.0,0.58423378]
[1762722157617,0.05965803,104730.0,104720.0,0.66521085]
[1762722158009,0.05965803,104730.0,104720.0,0.66721085]
[1762722158719,0.05965803,104730.0,104720.0,0.66521085]
[1762722159011,0.05965803,104730.0,104720.0,0.56969615]
[1762722159411,0.06065803,104730.0,104720.0,0.56869615]
[1762722162012,0.06065803,104730.0,104720.0,0.66421095]
[1762722162212,0.15616363,104730.0,104720.0,0.66421095]
[1762722162919,0.06065803,104730.0,104720.0,0.66421095]
[1762722164915,0.06065803,104730.0,104720.0,0.6737601]
[1762722169216,0.03718803,104730.0,104720.0,0.75934303]
[1762722169424,0.05965803,104730.0,104720.0,0.75934303]
[1762722169726,0.00319803,104730.0,104720.0,0.75934303]
[1762722170518,0.00219803,104730.0,104720.0,0.76134303]
[1762722170724,0.00219803,104730.0,104720.0,0.76234303]
[1762722171928,0.03431346,104740.0,104730.0,0.0955056]
[1762722172118,0.05898149,104740.0,104730.0,0.62747146]
[1762722173314,0.05998149,104740.0,104730.0,0.62747146]
[1762722173918,0.05998149,104740.0,104730.0,0.61193449]
[1762722174127,0.05998149,104740.0,104730.0,0.59018273]
[1762722175325,0.15548059,104740.0,104730.0,0.59018273]
[1762722175819,0.05998149,104740.0,104730.0,0.59018273]
[1762722177925,0.05998149,104740.0,104730.0,0.73758273]
[1762722178625,0.15547799,104740.0,104730.0,0.73758273]
[1762722180529,0.05998149,104740.0,104730.0,0.73758273]
[1762722181731,0.15547799,104740.0,104730.0,0.73758273]
[1762722182027,0.15547799,104740.0,104730.0,0.67936586]
[1762722182227,0.03751149,104740.0,104730.0,0.77487146]
[1762722182423,0.06018149,104740.0,104730.0,0.77487146]
[1762722182619,0.00334149,104740.0,104730.0,0.77487146]
[1762722183031,0.00114346,104740.0,104730.0,0.77487146]
[1762722183622,0.00114346,104740.0,104730.0,1.01737146]
[1762722183930,0.00114346,104740.0,104730.0,1.01937146]
[1762722184130,0.00114346,104740.0,104730.0,1.00383675]
[1762722184718,0.00014346,104740.0,104730.0,1.00383675]
[1762722184923,0.00014346,104740.0,104730.0,1.24251675]
[1762722185428,0.00014346,104740.0,104730.0,1.00001675]
[1762722185637,0.00014346,104740.0,104730.0,0.76133675]
[1762722185829,0.00234149,104740.0,104730.0,0.76133675]
[1762722186030,0.01558149,104740.0,104730.0,0.76133675]
[1762722187330,0.11107799,104740.0,104730.0,0.76133675]
[1762722187531,0.01558149,104740.0,104730.0,0.76133675]
[1762722188236,0.15580799,104740.0,104730.0,0.76133675]
[1762722191640,0.06031149,104740.0,104730.0,0.76133675]
[1762722194036,0.06031149,104740.0,104730.0,0.74580118]
[1762722195340,0.06031149,104740.0,104730.0,0.98830118]
[1762722195645,0.15580799,104740.0,104730.0,0.98830118]
[1762722196449,0.15580799,104740.0,104730.0,0.65857146]
[1762722196642,0.06031149,104740.0,104730.0,1.01937146]
[1762722197647,0.00234149,104740.0,104730.0,1.01937146]
[1762722197846,0.00014346,104740.0,104730.0,1.01937146]
[1762722201745,0.0129,104750.0,104740.0,0.0954965]
[1762722201947,0.0129,104750.0,104740.0,0.62746236]
[1762722203058,0.001,104750.0,104740.0,0.62746236]
[1762722203557,0.05777346,104760.0,104750.0,0.0954874]
[1762722203754,0.05997149,104760.0,104750.0,0.62745326]
[1762722204254,0.05997149,104760.0,104750.0,0.61192046]
[1762722204746,0.06197149,104760.0,104750.0,0.61192046]
[1762722206960,0.15744979,104760.0,104750.0,0.61192046]
[1762722207157,0.15744979,104760.0,104750.0,0.67373753]
[1762722214964,0.15744979,104760.0,104750.0,0.6582036]
[1762722224865,0.15744979,104760.0,104750.0,0.63311859]
[1762722226067,0.15744979,104760.0,104750.0,0.5842316]
[1762722226458,0.15744979,104760.0,104750.0,0.1474]
[1762722227266,0.51824979,104760.0,104750.0,0.1474]
[1762722230470,0.51824979,104760.0,104750.0,0.12565029]
[1762722235072,0.51824979,104760.0,104750.0,0.11011476]
[1762722236377,0.15744979,104760.0,104750.0,0.18614636]
[1762722237276,0.15744979,104760.0,104750.0,0.28163376]
[1762722238376,0.15744979,104760.0,104750.0,0.16439738]
[1762722240079,0.15744979,104760.0,104750.0,0.25988478]
[1762722243276,0.06197149,104760.0,104750.0,0.25988478]
[1762722243781,0.15744979,104760.0,104750.0,0.52519738]
[1762722243980,0.15744979,104760.0,104750.0,0.16439738]
[1762722244183,0.15744979,104760.0,104750.0,0.25988478]
[1762722244581,0.15744979,104760.0,104750.0,0.16439738]
[1762722244884,0.51824979,104760.0,104750.0,0.08836578]
[1762722245182,0.51824979,104760.0,104750.0,0.07282996]
[1762722248079,0.51824979,104760.0,104750.0,0.22022996]
[1762722254074,0.51824979,104760.0,104750.0,0.07282996]
[1762722255088,0.51824979,104760.0,104750.0,0.05729414]
[1762722255490,0.15744979,104760.0,104750.0,0.035544]
[1762722256389,0.38082085,104760.0,104750.0,0.035544]
[1762722256590,0.38082085,104760.0,104750.0,0.207063]
[1762722257389,0.38082085,104760.0,104750.0,0.567863]
[1762722259792,0.38082085,104760.0,104750.0,0.715263]
[1762722260192,0.15744979,104760.0,104750.0,0.715263]
[1762722261294,0.38082085,104760.0,104750.0,0.715263]
[1762722263095,0.28534255,104760.0,104750.0,0.715263]
[1762722263295,0.38082085,104760.0,104750.0,0.715263]
[1762722263487,0.38082085,104760.0,104750.0,0.69351431]
[1762722263688,0.28534255,104760.0,104750.0,0.69351431]
[1762722263887,0.06197149,104760.0,104750.0,0.69351431]
[1762722265098,0.06197149,104760.0,104750.0,0.67798014]
[1762722269096,0.01504346,104760.0,104750.0,0.67798014]
[1762722269300,0.00214346,104760.0,104750.0,0.75401174]
[1762722269600,0.00214346,104760.0,104750.0,0.67798014]
[1762722271503,0.00214346,104760.0,104750.0,0.91662014]
[1762722272795,0.00214346,104760.0,104750.0,0.67798014]
[1762722272996,0.00214346,104760.0,104750.0,0.91662014]
[1762722273496,0.00214346,104760.0,104750.0,0.99265174]
[1762722274295,0.00214346,104760.0,104750.0,0.75401174]
[1762722274495,0.00214346,104760.0,104750.0,0.99265174]
[1762722275200,0.00214346,104760.0,104750.0,0.7384797]
[1762722275401,0.00214346,104760.0,104750.0,0.9771197]
[1762722276901,0.00214346,104760.0,104750.0,0.8250565]
[1762722277203,0.01483346,104760.0,104750.0,0.9771197]
[1762722278589,0.01483346,104760.0,104750.0,0.7384797]
[1762722278990,0.01483346,104760.0,104750.0,0.9771197]
[1762722279700,0.00214346,104760.0,104750.0,0.9771197]
[1762722280607,0.01483346,104760.0,104750.0,0.9771197]
[1762722280903,0.00214346,104760.0,104750.0,0.9771197]
[1762722281407,0.03495,104770.0,104750.0,0.9771197]
[1762722281599,0.05782,104770.0,104760.0,0.6083415]
[1762722282504,0.06082,104770.0,104760.0,0.6083415]
[1762722282704,0.06382,104770.0,104760.0,0.6083415]
[1762722282900,0.01627,104770.0,104760.0,0.8469815]
[1762722283198,0.04037,104770.0,104760.0,0.8469815]
[1762722283404,0.06543803,104770.0,104760.0,0.9982415]
[1762722283607,0.06243803,104770.0,104760.0,0.9982415]
[1762722283906,0.06543803,104770.0,104760.0,0.9982415]
[1762722284906,0.06543803,104770.0,104760.0,1.01717318]
[1762722285105,0.06543803,104770.0,104760.0,1.00164142]
[1762722287210,0.06343803,104770.0,104760.0,1.00164142]
[1762722287911,0.06043803,104770.0,104760.0,1.00164142]
[1762722288210,0.06143803,104770.0,104760.0,1.00164142]
[1762722290910,0.15690723,104770.0,104760.0,1.00164142]
[1762722295106,0.15690723,104770.0,104760.0,0.75914142]
[1762722297818,0.15690723,104770.0,104760.0,0.49266824]
[1762722298113,0.15690723,104770.0,104760.0,0.56263464]
[1762722299015,0.15690723,104770.0,104760.0,0.65811294]
[1762722299416,0.15690723,104770.0,104760.0,0.74361038]
[1762722299614,0.15690723,104770.0,104760.0,0.65811294]
[1762722300318,0.15690723,104770.0,104760.0,0.74361038]
[1762722301817,0.15690723,104770.0,104760.0,0.64813208]
[1762722302318,0.15690723,104770.0,104760.0,0.74361038]
[1762722308022,0.15690723,104770.0,104760.0,0.72807811]
[1762722308918,0.15690723,104770.0,104760.0,0.63259981]
[1762722309834,0.15690723,104770.0,104760.0,0.67919488]
[1762722311137,0.15690723,104770.0,104760.0,0.31839488]
[1762722311434,0.15690723,104770.0,104760.0,0.23289744]
[1762722318034,0.15690723,104770.0,104760.0,0.21736439]
[1762722318537,0.15690723,104770.0,104760.0,0.13186695]
[1762722318733,0.15690723,104770.0,104740.0,0.36094346]
[1762722318734,0.05762,104750.0,104740.0,0.36094346]
[1762722319034,0.05981803,104750.0,104740.0,0.4464409]
[1762722319829,0.05981803,104750.0,104740.0,0.4494409]
[1762722320232,0.05981803,104750.0,104740.0,0.4514409]
[1762722325342,0.05981803,104750.0,104740.0,0.58330785]
[1762722327242,0.05981803,104750.0,104740.0,0.67880435]
[1762722328045,0.05981803,104750.0,104740.0,0.31786089]
[1762722328546,0.05908346,104760.0,104750.0,0.0954874]
[1762722328842,0.06128149,104760.0,104750.0,0.62728228]
[1762722329631,0.06128149,104760.0,104750.0,0.62828228]
[1762722329943,0.06128149,104760.0,104750.0,0.62928228]
[1762722330144,0.06128149,104760.0,104750.0,0.76114923]
[1762722337253,0.06128149,104760.0,104750.0,0.49466695]
[1762722337448,0.06128149,104760.0,104750.0,0.58016439]
[1762722338054,0.06128149,104760.0,104750.0,0.21936439]
[1762722338860,0.06128149,104760.0,104750.0,0.20383018]
[1762722341463,0.06128149,104760.0,104750.0,0.29931758]
[1762722341956,0.06128149,104760.0,104750.0,0.20383018]
[1762722343257,0.06128149,104760.0,104750.0,0.18208228]
[1762722344459,0.15675979,104760.0,104750.0,0.27756978]
[1762722345152,0.15675979,104760.0,104750.0,0.18208228]
[1762722346863,0.15675979,104760.0,104750.0,0.17262479]
[1762722348663,0.15675979,104760.0,104750.0,0.15709071]
[1762722349963,0.51755979,104760.0,104750.0,0.08105076]
[1762722353562,0.51755979,104760.0,104740.0,0.25273007]
[1762722353863,0.41942,104750.0,104740.0,0.25273007]
[1762722354169,0.42161803,104750.0,104740.0,0.25273007]
[1762722354973,0.42161803,104750.0,104740.0,0.25473007]
[1762722355860,0.42161803,104750.0,104740.0,0.25573007]
[1762722356367,0.06081803,104750.0,104740.0,0.25573007]
[1762722356565,0.06081803,104750.0,104740.0,0.25473007]
[1762722356759,0.06081803,104750.0,104740.0,0.25773007]
[1762722357470,0.15630543,104750.0,104740.0,0.08619422]
[1762722357663,0.15630543,104750.0,104740.0,0.16223417]
[1762722358177,0.15630543,104750.0,104740.0,0.25773077]
[1762722358368,0.06081803,104750.0,104740.0,0.25773077]
[1762722358572,0.06081803,104750.0,104740.0,0.61853077]
[1762722358773,0.06081803,104750.0,104740.0,0.24219542]
[1762722358968,0.06081803,104750.0,104740.0,0.60299542]
[1762722359572,0.06081803,104750.0,104740.0,0.53733655]
[1762722363870,0.06081803,104750.0,104740.0,0.17653655]
[1762722364477,0.42161803,104750.0,104740.0,0.08103995]
[1762722365379,0.42161803,104750.0,104740.0,0.22843995]
[1762722366380,0.42161803,104750.0,104740.0,0.32393655]
[1762722366581,0.06081803,104750.0,104740.0,0.32393655]
[1762722366777,0.06081803,104750.0,104740.0,0.005]
[1762722366778,0.42161803,104750.0,104740.0,0.005]
[1762722368683,0.42161803,104750.0,104740.0,0.0026398]
[1762722371585,0.05875,104740.0,104730.0,0.07603995]
[1762722371785,0.06094803,104740.0,104730.0,0.07603995]
[1762722373900,0.06394803,104740.0,104730.0,0.07603995]
[1762722376501,0.06394803,104740.0,104730.0,0.17154565]
[1762722377101,0.06394803,104740.0,104730.0,0.31894565]
[1762722377296,0.06394803,104740.0,104730.0,0.22343995]
[1762722378697,0.06394803,104740.0,104730.0,0.20790235]
[1762722380995,0.06394803,104740.0,104730.0,0.30340805]
[1762722382206,0.15944453,104740.0,104730.0,0.30340805]
[1762722382394,0.15944453,104740.0,104730.0,0.66420805]
[1762722382999,0.06394803,104740.0,104730.0,0.66420805]
[1762722383400,0.15944453,104740.0,104730.0,0.56870235]
[1762722384503,0.15944453,104740.0,104730.0,0.66420805]
[1762722385609,0.15944453,104740.0,104730.0,0.20790235]
[1762722387009,0.15944453,104740.0,104730.0,0.22343995]
[1762722388712,0.15944453,104740.0,104730.0,0.20790251]
[1762722388913,0.15944453,104740.0,104730.0,0.07603995]
[1762722391902,0.15944453,104740.0,104730.0,0.53234565]
[1762722392508,0.15944453,104740.0,104730.0,0.43683995]
[1762722393419,0.15944453,104740.0,104730.0,0.53234565]
[1762722394619,0.15944453,104740.0,104730.0,0.67974565]
[1762722396015,0.15944453,104740.0,104730.0,0.65799377]
[1762722396221,0.15944453,104740.0,104730.0,0.67974565]
[1762722396424,0.38281559,104740.0,104730.0,0.67974565]
[1762722398723,0.38281559,104740.0,104730.0,0.66420867]
[1762722399023,0.15944453,104740.0,104730.0,0.66420867]
[1762722406419,0.15944453,104740.0,104730.0,0.51680867]
[1762722408814,0.15944453,104740.0,104730.0,0.52631564]
[1762722409013,0.06394803,104740.0,104730.0,0.61186256]
[1762722409219,0.11436453,104740.0,104730.0,0.61186256]
[1762722409526,0.06447803,104740.0,104730.0,0.5963262]
[1762722410428,0.15897453,104740.0,104730.0,0.5963262]
[1762722410629,0.15897453,104740.0,104730.0,0.5973262]
[1762722410923,0.15697453,104740.0,104730.0,0.5973262]
[1762722411129,0.15797453,104740.0,104730.0,0.5973262]
[1762722411924,0.15797453,104740.0,104730.0,0.5963262]
[1762722412126,0.15997453,104740.0,104730.0,0.5963262]
[1762722412636,0.15797453,104740.0,104730.0,0.5963262]
[1762722412928,0.15897453,104740.0,104730.0,0.5963262]
[1762722413526,0.15797453,104740.0,104730.0,0.5973262]
[1762722416330,0.15797453,104740.0,104730.0,0.62839954]
[1762722419435,0.15797453,104740.0,104730.0,0.61286319]
[1762722424237,0.03601,104750.0,104740.0,0.0954966]
[1762722424536,0.15219746,104760.0,104750.0,0.0954874]
[1762722424725,0.15439549,104760.0,104750.0,0.26658124]
[1762722425139,0.15439549,104760.0,104750.0,0.62738124]
[1762722425541,0.00234149,104760.0,104750.0,0.62738124]
[1762722426137,0.15577979,104760.0,104750.0,0.62738124]
[1762722426440,0.15877979,104760.0,104750.0,0.62738124]
[1762722427036,0.15677979,104760.0,104750.0,0.62738124]
[1762722427238,0.06034149,104760.0,104750.0,0.4572874]
[1762722427438,0.06034149,104760.0,104750.0,0.62838124]
[1762722428037,0.01722149,104760.0,104750.0,0.62838124]
[1762722428336,0.01269,104770.0,104760.0,0.0954783]
[1762722428534,0.01269,104770.0,104760.0,0.62737214]
[1762722428737,0.65540485,104780.0,104770.0,0.0954692]
[1762722428935,0.65760288,104780.0,104770.0,0.18101612]
[1762722429451,0.65760288,104780.0,104770.0,0.16548296]
[1762722430139,0.66060288,104780.0,104770.0,0.16548296]
[1762722430442,0.66360288,104780.0,104770.0,0.16548296]
[1762722430828,0.43923182,104780.0,104770.0,0.16548296]
[1762722431029,0.43923182,104780.0,104770.0,0.08554692]
[1762722431442,0.057,104770.0,104760.0,0.45642176]
[1762722431642,0.05919803,104770.0,104760.0,0.6275156]
[1762722432743,0.05919803,104770.0,104760.0,0.2667156]
[1762722432939,0.05919803,104770.0,104760.0,0.6275156]
[1762722433141,0.05919803,104770.0,104760.0,0.6285156]
[1762722435653,0.05919803,104770.0,104760.0,0.6275156]
[1762722435952,0.06019803,104770.0,104760.0,0.6275156]
[1762722436135,0.06119803,104770.0,104760.0,0.6275156]
[1762722436750,0.06119803,104770.0,104760.0,0.45642176]
[1762722437039,0.06119803,104770.0,104760.0,0.6275156]
[1762722437445,0.06019803,104770.0,104760.0,0.6275156]
[1762722437640,0.06119803,104770.0,104760.0,0.6275156]
[1762722439547,0.06119803,104770.0,104760.0,0.61198393]
[1762722440445,0.01388,104760.0,104750.0,0.4562812]
[1762722440746,0.05919803,104760.0,104750.0,0.62737504]
[1762722441747,0.05919803,104760.0,104750.0,0.62837504]
[1762722445946,0.03747803,104760.0,104750.0,0.62837504]
[1762722446241,0.05826346,104770.0,104760.0,0.0954783]
[1762722446547,0.06046149,104770.0,104760.0,0.62737214]
[1762722447451,0.06146149,104770.0,104760.0,0.62737214]
[1762722447752,0.03831149,104770.0,104760.0,0.62737214]
[1762722448451,0.03931149,104770.0,104760.0,0.62737214]
[1762722449456,0.03931149,104770.0,104760.0,0.61184123]
[1762722449645,0.01822149,104770.0,104760.0,0.61184123]
[1762722449841,0.03931149,104770.0,104760.0,0.61184123]
[1762722450454,0.06246149,104770.0,104760.0,0.61184123]
[1762722451353,0.06146149,104770.0,104760.0,0.61184123]
[1762722451558,0.06046149,104770.0,104760.0,0.61284123]
[1762722455756,0.03731149,104770.0,104760.0,0.61284123]
[1762722456053,0.13278069,104770.0,104760.0,0.61284123]
[1762722456249,0.06046149,104770.0,104760.0,0.61284123]
[1762722456757,0.15593069,104770.0,104760.0,0.61284123]
[1762722457853,0.06046149,104770.0,104760.0,0.61284123]
[1762722458548,0.06046149,104770.0,104760.0,0.08654692]
[1762722458549,0.42126149,104770.0,104760.0,0.08654692]
[1762722458948,0.05709,104740.0,104730.0,0.456303]
[1762722459246,0.05928803,104740.0,104730.0,0.62739684]
[1762722460560,0.05928803,104740.0,104730.0,0.63039684]
[1762722461359,0.05928803,104740.0,104730.0,0.63239684]
[1762722468949,0.05928803,104740.0,104730.0,0.461303]
[1762722469161,0.05928803,104740.0,104730.0,0.53734996]
[1762722475170,0.05928803,104740.0,104730.0,0.52181399]
[1762722475360,0.05928803,104740.0,104730.0,0.53734996]